bitfinex/quotes_BTCUSD_20250218
["timestamp","ask_amount","ask_price","bid_price","bid_amount"]
[1739876607869,0.4363034,95866.0,95865.0,7.297e-05]
[1739876608068,0.3086384,95866.0,95865.0,7.297e-05]
[1739876608271,0.3096384,95866.0,95865.0,7.297e-05]
[1739876609089,0.1531704,95866.0,95865.0,7.297e-05]
[1739876609415,0.3076384,95866.0,95865.0,7.297e-05]
[1739876610203,1.5690424,95866.0,95865.0,7.297e-05]
[1739876610401,1.5680424,95866.0,95865.0,7.297e-05]
[1739876610807,1.4210424,95866.0,95865.0,7.297e-05]
[1739876611146,1.4207624,95866.0,95865.0,7.297e-05]
[1739876611364,0.1563584,95866.0,95865.0,7.297e-05]
[1739876611910,0.156468,95866.0,95865.0,7.297e-05]
[1739876612474,1.443672,95866.0,95865.0,7.297e-05]
[1739876612980,1.254495,95866.0,95865.0,7.297e-05]
[1739876613514,1.254495,95866.0,95865.0,0.01965231]
[1739876613721,0.0001704,95867.0,95865.0,0.01965231]
[1739876613923,0.1566374,95867.0,95865.0,0.01965231]
[1739876614519,0.1566374,95867.0,95865.0,7.297e-05]
[1739876615646,0.156468,95866.0,95865.0,7.297e-05]
[1739876616060,0.1566374,95867.0,95865.0,7.297e-05]
[1739876617075,0.1566374,95867.0,95865.0,0.00307297]
[1739876617290,0.156468,95866.0,95865.0,0.00307297]
[1739876617514,0.156468,95866.0,95865.0,7.297e-05]
[1739876617714,0.0001704,95867.0,95865.0,7.297e-05]
[1739876617916,0.0001703,95866.0,95865.0,0.00307297]
[1739876618317,0.0001703,95866.0,95865.0,7.297e-05]
[1739876618473,0.1566383,95866.0,95865.0,7.297e-05]
[1739876618678,0.1566383,95866.0,95865.0,0.00307297]
[1739876629746,0.1566383,95866.0,95865.0,0.00282061]
[1739876636822,0.1566383,95866.0,95865.0,0.02240349]
[1739876638224,0.1566383,95866.0,95865.0,0.00282061]
[1739876641051,0.1566383,95866.0,95865.0,0.00316121]
[1739876644496,0.2012414,95868.0,95865.0,0.00316121]
[1739876644669,1.445463,95867.0,95865.0,0.00316121]
[1739876644907,0.156468,95866.0,95865.0,0.00316121]
[1739876645921,0.156468,95866.0,95865.0,0.0003406]
[1739876646281,0.156468,95866.0,95865.0,0.0013406]
[1739876646680,0.156468,95866.0,95865.0,0.0003406]
[1739876646893,0.156468,95866.0,95865.0,0.01993258]
[1739876647093,0.156468,95866.0,95865.0,0.02093258]
[1739876648559,0.156468,95866.0,95865.0,0.0003406]
[1739876648903,0.156468,95866.0,95865.0,0.0013406]
[1739876649401,0.156468,95866.0,95865.0,0.0003406]
[1739876649819,0.156468,95866.0,95865.0,0.0013406]
[1739876652143,0.1566383,95866.0,95865.0,0.0013406]
[1739876655310,0.156468,95866.0,95865.0,0.0013406]
[1739876655556,2.554095,95866.0,95865.0,0.0013406]
[1739876655861,2.92543665,95866.0,95865.0,0.0013406]
[1739876656063,1.09274,95866.0,95865.0,0.0013406]
[1739876656179,0.306468,95866.0,95865.0,0.0003406]
[1739876656378,2.632924,95866.0,95865.0,0.0003406]
[1739876656629,2.632924,95866.0,95865.0,0.0013406]
[1739876657095,1.90353,95866.0,95865.0,0.0003406]
[1739876657900,1.751931,95866.0,95865.0,0.0003406]
[1739876658733,1.90132,95866.0,95865.0,0.0003406]
[1739876659148,1.90332,95866.0,95865.0,0.0003406]
[1739876659502,1.90132,95866.0,95865.0,0.0003406]
[1739876660759,1.90032,95866.0,95865.0,0.0003406]
[1739876660961,1.90132,95866.0,95865.0,0.0003406]
[1739876661107,1.90232,95866.0,95865.0,0.0003406]
[1739876661302,1.90108203,95866.0,95865.0,0.0003406]
[1739876661556,1.90208203,95866.0,95865.0,0.0003406]
[1739876662652,1.92015559,95866.0,95865.0,0.0003406]
[1739876663268,1.90108203,95866.0,95865.0,0.0003406]
[1739876663519,1.90208203,95866.0,95865.0,0.0003406]
[1739876664026,1.90108203,95866.0,95865.0,0.0003406]
[1739876664666,1.90208203,95866.0,95865.0,0.0003406]
[1739876664872,1.90108203,95866.0,95865.0,0.0003406]
[1739876665299,1.90208203,95866.0,95865.0,0.0003406]
[1739876666131,1.93930119,95866.0,95865.0,0.0003406]
[1739876666993,1.98448203,95866.0,95865.0,0.0003406]
[1739876667484,1.90208203,95866.0,95865.0,0.0003406]
[1739876668933,0.45661903,95866.0,95865.0,0.0003406]
[1739876669147,1.90208203,95866.0,95865.0,0.0003406]
[1739876669354,3.76715703,95866.0,95865.0,0.0003406]
[1739876673002,2.08082503,95866.0,95865.0,0.0003406]
[1739876673207,1.50456403,95866.0,95865.0,0.0003406]
[1739876673426,1.44456403,95866.0,95865.0,0.0003406]
[1739876673964,1.44356403,95866.0,95865.0,0.0003406]
[1739876674569,1.44456403,95866.0,95865.0,0.0003406]
[1739876674785,1.418669,95866.0,95865.0,0.0003406]
[1739876675136,1.265357,95866.0,95865.0,0.0003406]
[1739876675921,1.2635273,95866.0,95865.0,0.0003406]
[1739876676711,1.2635273,95866.0,95865.0,0.0013406]
[1739876679071,0.3066383,95866.0,95865.0,0.0013406]
[1739876679225,3.6475133,95866.0,95865.0,0.0013406]
[1739876679630,2.2020503,95866.0,95865.0,0.0003406]
[1739876679846,3.4896723,95866.0,95865.0,0.0003406]
[1739876680024,3.3925723,95866.0,95865.0,0.0013406]
[1739876680222,3.49507595,95866.0,95865.0,0.0013406]
[1739876680446,3.49507595,95866.0,95865.0,0.0003406]
[1739876680766,3.27497195,95866.0,95865.0,0.0013406]
[1739876681411,3.38997195,95866.0,95865.0,0.0013406]
[1739876682854,3.38997195,95866.0,95865.0,0.0003406]
[1739876683256,3.39597195,95866.0,95865.0,0.0003406]
[1739876683418,3.08950395,95866.0,95865.0,0.0003406]
[1739876683622,3.23997195,95866.0,95865.0,0.0003406]
[1739876684050,3.24997195,95866.0,95865.0,0.0003406]
[1739876684456,3.3524756,95866.0,95863.0,0.0003408]
[1739876684671,0.156471,95864.0,95863.0,0.0003408]
[1739876684870,3.71790165,95864.0,95863.0,0.0003408]
[1739876685576,3.86790165,95864.0,95863.0,0.0003408]
[1739876685991,1.000915,95864.0,95863.0,0.0003408]
[1739876686549,0.851444,95864.0,95863.0,0.0489408]
[1739876686759,0.114581,95864.0,95863.0,0.0489408]
[1739876687130,0.107581,95864.0,95863.0,0.0489408]
[1739876687561,0.114581,95864.0,95863.0,0.0489408]
[1739876687759,0.271052,95864.0,95863.0,0.0489408]
[1739876687963,0.264052,95864.0,95863.0,0.0489408]
[1739876688604,1.32545086,95864.0,95863.0,0.0003408]
[1739876688786,3.445344,95864.0,95863.0,0.0003408]
[1739876688983,3.471898,95864.0,95863.0,0.0003408]
[1739876689405,3.621898,95864.0,95863.0,0.0003408]
[1739876689716,3.72440165,95864.0,95863.0,0.0003408]
[1739876690281,3.72640165,95864.0,95863.0,0.0003408]
[1739876691465,3.72840165,95864.0,95863.0,0.0003408]
[1739876691869,3.72640165,95864.0,95863.0,0.0003408]
[1739876692106,3.73040165,95864.0,95863.0,0.0003408]
[1739876692307,3.72840165,95864.0,95863.0,0.0003408]
[1739876692642,3.627898,95864.0,95863.0,0.0003408]
[1739876692837,3.623898,95864.0,95863.0,0.0003408]
[1739876693068,3.626898,95864.0,95863.0,0.0003408]
[1739876693432,3.629898,95864.0,95863.0,0.0003408]
[1739876694350,3.624898,95864.0,95863.0,0.0003408]
[1739876695244,3.627898,95864.0,95863.0,0.0003408]
[1739876696196,3.73040165,95864.0,95863.0,0.0003408]
[1739876698692,3.72740165,95864.0,95863.0,0.0003408]
[1739876699294,3.73040165,95864.0,95863.0,0.0003408]
[1739876701043,3.627898,95864.0,95863.0,0.0003408]
[1739876701781,2.182435,95864.0,95863.0,0.0003408]
[1739876702060,3.627898,95864.0,95863.0,0.0003408]
[1739876709027,3.012263,95864.0,95863.0,0.0003408]
[1739876709225,2.521651,95864.0,95863.0,0.0003408]
[1739876709563,2.482224,95864.0,95863.0,0.0003408]
[1739876709764,2.259044,95864.0,95863.0,0.0003408]
[1739876709971,1.781714,95864.0,95863.0,0.0003408]
[1739876712406,1.778714,95864.0,95863.0,0.0003408]
[1739876712921,1.779714,95864.0,95863.0,0.0003408]
[1739876713128,1.778714,95864.0,95863.0,0.0003408]
[1739876713531,1.775714,95864.0,95863.0,0.0003408]
[1739876713959,1.776714,95864.0,95863.0,0.0003408]
[1739876716468,0.554431,95864.0,95863.0,0.0003408]
[1739876716676,1.999894,95864.0,95863.0,0.0003408]
[1739876718965,2.08146866,95864.0,95863.0,0.0003408]
[1739876719149,1.999894,95864.0,95863.0,0.0003408]
[1739876720116,1.998894,95864.0,95863.0,0.0003408]
[1739876720367,2.000894,95864.0,95863.0,0.0003408]
[1739876721258,1.998894,95864.0,95863.0,0.0003408]
[1739876721554,2.001894,95864.0,95863.0,0.0003408]
[1739876721772,2.10139765,95864.0,95863.0,0.0003408]
[1739876722345,2.10339765,95864.0,95863.0,0.0003408]
[1739876723140,2.10439765,95864.0,95863.0,0.0003408]
[1739876723369,2.10739765,95864.0,95863.0,0.0003408]
[1739876728567,0.66193465,95864.0,95863.0,0.0003408]
[1739876728776,2.10739765,95864.0,95863.0,0.0003408]
[1739876731491,2.10139765,95864.0,95863.0,0.0003408]
[1739876731636,2.10639765,95864.0,95863.0,0.0003408]
[1739876731846,2.11139765,95864.0,95863.0,0.0003408]
[1739876732079,2.11451395,95864.0,95863.0,0.0003408]
[1739876737094,2.10951395,95864.0,95863.0,0.0003408]
[1739876737238,2.11551395,95864.0,95863.0,0.0003408]
[1739876737452,2.11051395,95864.0,95863.0,0.0003408]
[1739876737852,2.11651395,95864.0,95863.0,0.0003408]
[1739876738249,2.2190176,95864.0,95863.0,0.0003408]
[1739876740145,2.2130176,95864.0,95863.0,0.0003408]
[1739876740379,2.2200176,95864.0,95863.0,0.0003408]
[1739876740555,2.2140176,95864.0,95863.0,0.0003408]
[1739876740985,2.2210176,95864.0,95863.0,0.0003408]
[1739876741771,0.306494,95850.0,95849.0,0.00010086]
[1739876741992,3.8378007,95850.0,95849.0,0.00010086]
[1739876742223,0.30651,95840.0,95839.0,0.0819404]
[1739876742422,3.156454,95840.0,95839.0,0.08207252]
[1739876742630,3.17487229,95840.0,95839.0,0.08207252]
[1739876743380,3.27737594,95840.0,95839.0,0.08207252]
[1739876743723,3.27837594,95840.0,95839.0,0.08207252]
[1739876743903,3.17487229,95840.0,95839.0,0.08207252]
[1739876744285,3.17587229,95840.0,95839.0,0.08207252]
[1739876744490,3.18715358,95840.0,95839.0,0.08207252]
[1739876746161,3.18815358,95840.0,95839.0,0.08207252]
[1739876746372,3.06972358,95840.0,95839.0,0.08207252]
[1739876746545,1.37025758,95840.0,95839.0,0.08207252]
[1739876746753,1.19648658,95840.0,95839.0,0.08207252]
[1739876746962,0.82204358,95840.0,95839.0,0.08207252]
[1739876747280,0.82204358,95840.0,95839.0,0.08183455]
[1739876747491,0.32286358,95840.0,95839.0,0.08183455]
[1739876747708,2.27605658,95840.0,95839.0,0.08183455]
[1739876748764,0.83059358,95840.0,95839.0,0.08183455]
[1739876748958,2.22253458,95840.0,95839.0,0.08183455]
[1739876749186,2.25280958,95840.0,95839.0,0.08183455]
[1739876751068,2.2691616,95840.0,95839.0,0.08183455]
[1739876751721,2.37166525,95840.0,95839.0,0.08183455]
[1739876752561,2.2691616,95840.0,95839.0,0.08183455]
[1739876752774,2.25280958,95840.0,95839.0,0.08183455]
[1739876756073,2.25180958,95840.0,95839.0,0.08183455]
[1739876756458,2.25280958,95840.0,95839.0,0.08183455]
[1739876756832,2.25180958,95840.0,95839.0,0.08183455]
[1739876756997,2.26916163,95840.0,95839.0,0.08183455]
[1739876757624,1.96265163,95840.0,95839.0,0.08183455]
[1739876757870,2.11916163,95840.0,95839.0,0.08183455]
[1739876759575,2.11933193,95840.0,95839.0,0.08183455]
[1739876762702,2.10297988,95840.0,95839.0,0.08183455]
[1739876763112,0.65751688,95840.0,95839.0,0.08183455]
[1739876763520,2.38958988,95840.0,95839.0,0.08183455]
[1739876763738,2.38509488,95840.0,95839.0,0.08183455]
[1739876763975,2.13443088,95840.0,95839.0,0.08183455]
[1739876764803,2.13443088,95840.0,95839.0,0.00023455]
[1739876765149,2.13518147,95840.0,95839.0,0.00023455]
[1739876765583,2.1505336,95840.0,95839.0,0.00023455]
[1739876766606,2.1515336,95840.0,95839.0,0.00023455]
[1739876766811,2.1505336,95840.0,95839.0,0.00023455]
[1739876767030,2.14771072,95840.0,95839.0,0.00023455]
[1739876768871,2.15150836,95840.0,95839.0,0.00023455]
[1739876771639,2.13515623,95840.0,95839.0,0.00023455]
[1739876772395,2.13415623,95840.0,95839.0,0.00023455]
[1739876772895,2.13515623,95840.0,95839.0,0.00023455]
[1739876773213,2.13415623,95840.0,95839.0,0.00023455]
[1739876773423,2.13315623,95840.0,95839.0,0.00023455]
[1739876773621,2.13515623,95840.0,95839.0,0.00023455]
[1739876774197,0.83869323,95840.0,95839.0,0.00023455]
[1739876774406,0.32375923,95840.0,95839.0,0.00023455]
[1739876774581,2.66912623,95840.0,95839.0,0.00023455]
[1739876776367,2.68547888,95840.0,95839.0,0.00023455]
[1739876781598,2.78798253,95840.0,95839.0,0.00023455]
[1739876782641,2.68547888,95840.0,95839.0,0.00023455]
[1739876782877,2.66912623,95840.0,95839.0,0.00023455]
[1739876785792,2.68547926,95840.0,95839.0,0.00023455]
[1739876787751,2.36272003,95840.0,95839.0,0.00023455]
[1739876787952,2.52447703,95840.0,95839.0,0.00023455]
[1739876788881,2.5354628,95840.0,95839.0,0.00023455]
[1739876791384,2.4284008,95840.0,95839.0,0.00023455]
[1739876791992,2.2763468,95840.0,95839.0,0.00023455]
[1739876792197,2.2237348,95840.0,95839.0,0.00023455]
[1739876792759,1.61920577,95840.0,95839.0,0.00023455]
[1739876793600,1.61820577,95840.0,95839.0,0.00023455]
[1739876794768,1.61920577,95840.0,95839.0,0.00023455]
[1739876795301,0.88143907,95840.0,95839.0,0.00023455]
[1739876795523,0.88043907,95840.0,95839.0,0.00023455]
[1739876795856,0.89679205,95840.0,95839.0,0.00023455]
[1739876796058,0.18926605,95840.0,95839.0,0.00023455]
[1739876796444,1.15537605,95840.0,95839.0,0.00023455]
[1739876796643,1.35388605,95840.0,95839.0,0.00023455]
[1739876797868,0.91549705,95840.0,95839.0,0.00023455]
[1739876799260,0.81460105,95840.0,95839.0,0.00023455]
[1739876801619,0.37221105,95840.0,95839.0,0.00023455]
[1739876802264,0.03275605,95840.0,95839.0,0.07923455]
[1739876802472,0.01640307,95840.0,95839.0,0.07923455]
[1739876802885,0.01115607,95840.0,95839.0,0.12483455]
[1739876803314,0.01640891,95840.0,95839.0,0.2273382]
[1739876804772,0.17291891,95840.0,95839.0,0.2273382]
[1739876804975,0.01640891,95840.0,95839.0,0.2273382]
[1739876805696,0.18927086,95840.0,95839.0,0.2273382]
[1739876805903,0.03276086,95840.0,95839.0,0.2273382]
[1739876807587,0.00525717,95840.0,95839.0,0.2273382]
[1739876807822,0.08548872,95850.0,95839.0,0.2273382]
[1739876807968,0.156507,95843.0,95839.0,0.2273382]
[1739876808183,1.45006586,95842.0,95839.0,0.2273382]
[1739876808403,0.00460286,95842.0,95840.0,0.0767]
[1739876808638,0.22501391,95849.0,95840.0,0.0767]
[1739876808822,0.1565,95847.0,95840.0,0.0767]
[1739876809028,0.001,95843.0,95840.0,0.0767]
[1739876809229,1.445463,95842.0,95840.0,0.0767]
[1739876809432,0.00460286,95842.0,95840.0,0.0767]
[1739876809827,0.01094513,95843.0,95840.0,0.0767]
[1739876810029,0.00460171,95841.0,95840.0,0.0767]
[1739876810238,0.156499,95847.0,95840.0,0.0767]
[1739876810447,0.00460171,95841.0,95840.0,0.0767]
[1739876810641,0.01635191,95849.0,95840.0,0.17920365]
[1739876810910,1.445463,95848.0,95841.0,0.0759]
[1739876811961,0.001,95843.0,95842.0,0.18400365]
[1739876812165,1.445463,95843.0,95842.0,0.18400365]
[1739876812375,1.446463,95848.0,95842.0,0.18400365]
[1739876812550,1.445463,95843.0,95842.0,0.18400365]
[1739876812726,1.445463,95843.0,95842.0,0.18377926]
[1739876812910,1.445463,95847.0,95842.0,0.18377926]
[1739876813116,1.445463,95847.0,95842.0,0.10227926]
[1739876813351,1.445463,95848.0,95843.0,0.0794]
[1739876813605,1.445463,95848.0,95843.0,0.18190365]
[1739876813844,1.445463,95849.0,95843.0,0.10250365]
[1739876814026,1.445463,95849.0,95844.0,0.1245]
[1739876814371,1.445463,95849.0,95844.0,0.0454]
[1739876814595,0.01093322,95849.0,95845.0,0.18160365]
[1739876814801,1.445463,95848.0,95846.0,0.0791]
[1739876815229,0.001,95849.0,95846.0,0.0791]
[1739876815569,1.445463,95848.0,95846.0,0.0791]
[1739876815772,0.001,95849.0,95846.0,0.0791]
[1739876816193,0.001,95848.0,95846.0,0.0791]
[1739876817049,0.01079261,95849.0,95846.0,0.0791]
[1739876817255,0.001,95849.0,95846.0,0.0791]
[1739876817406,0.002,95849.0,95846.0,0.0791]
[1739876818528,0.001,95849.0,95846.0,0.0791]
[1739876818886,0.001,95848.0,95846.0,0.0791]
[1739876819194,0.001,95849.0,95846.0,0.0791]
[1739876819326,0.002,95849.0,95846.0,0.0791]
[1739876819526,0.0001702,95848.0,95846.0,0.0791]
[1739876820009,0.0011702,95848.0,95846.0,0.0791]
[1739876820205,0.0001702,95848.0,95846.0,0.0791]
[1739876820578,0.00012846,95848.0,95846.0,0.0791]
[1739876822719,0.00112846,95848.0,95846.0,0.0791]
[1739876826132,0.00012846,95848.0,95846.0,0.0791]
[1739876830788,0.00012846,95848.0,95847.0,0.01958038]
[1739876832168,0.01070508,95849.0,95847.0,0.01958038]
[1739876832713,0.0001702,95848.0,95847.0,0.01958038]
[1739876832890,0.0001702,95848.0,95846.0,0.0794404]
[1739876833939,0.0001702,95848.0,95847.0,0.01959074]
[1739876843844,0.0001702,95848.0,95847.0,0.01993114]
[1739876848210,0.00527233,95856.0,95847.0,0.01993114]
[1739876848211,0.0001703,95865.0,95849.0,0.1293]
[1739876848417,0.0001703,95865.0,95864.0,0.237671]
[1739876848627,0.0001703,95865.0,95864.0,0.34017465]
[1739876848830,0.0001703,95865.0,95864.0,0.42072862]
[1739876849039,0.0001703,95865.0,95864.0,0.26425762]
[1739876849239,0.156479,95859.0,95858.0,0.00771233]
[1739876849866,0.16111407,95859.0,95858.0,0.00771233]
[1739876850428,2.73100207,95859.0,95858.0,0.00771233]
[1739876851036,2.57452307,95859.0,95847.0,0.0003404]
[1739876851236,0.156494,95850.0,95847.0,0.0003404]
[1739876851447,0.00462362,95849.0,95847.0,0.0003404]
[1739876851606,0.208658,95851.0,95847.0,0.0003404]
[1739876851981,0.00462706,95850.0,95847.0,0.0003404]
[1739876852331,0.156496,95849.0,95847.0,0.0003404]
[1739876852741,0.08018236,95857.0,95847.0,0.0033404]
[1739876852742,0.00462363,95848.0,95847.0,0.0033404]
[1739876852918,0.00462363,95848.0,95847.0,0.0023404]
[1739876853122,0.156494,95850.0,95847.0,0.0023404]
[1739876853318,0.00462248,95848.0,95847.0,0.0033404]
[1739876853528,0.156494,95850.0,95847.0,0.0023404]
[1739876853723,0.00462248,95848.0,95847.0,0.0023404]
[1739876854139,0.156494,95850.0,95847.0,0.0023404]
[1739876854365,0.00462362,95849.0,95847.0,0.0023404]
[1739876854814,0.00462362,95849.0,95847.0,0.0003404]
[1739876855042,0.00562362,95849.0,95847.0,0.0013404]
[1739876855489,0.00562362,95849.0,95847.0,0.0003404]
[1739876855687,0.156497,95848.0,95847.0,0.0003404]
[1739876855887,0.00562362,95849.0,95847.0,0.0013404]
[1739876856129,0.00562999,95848.0,95847.0,0.0023404]
[1739876856327,0.16212699,95848.0,95847.0,0.0013404]
[1739876856761,0.16212699,95848.0,95847.0,0.0023404]
[1739876856973,0.16112699,95848.0,95847.0,0.0013404]
[1739876857171,0.16112699,95848.0,95847.0,0.0023404]
[1739876857379,0.16212699,95848.0,95847.0,0.0013404]
[1739876857809,0.16212699,95848.0,95847.0,0.0023404]
[1739876858024,0.00562999,95848.0,95847.0,0.0023404]
[1739876858229,0.00562999,95848.0,95847.0,0.0013404]
[1739876858441,0.00662999,95848.0,95847.0,0.0023404]
[1739876858831,0.00562999,95848.0,95847.0,0.0011294]
[1739876859031,0.00462999,95848.0,95847.0,0.0001294]
[1739876859234,0.00562999,95848.0,95847.0,0.0011294]
[1739876859444,0.16212699,95848.0,95847.0,0.0021294]
[1739876859837,0.16212699,95848.0,95847.0,0.0011294]
[1739876860024,0.16312699,95848.0,95847.0,0.0021294]
[1739876861798,0.00662999,95848.0,95847.0,0.0021294]
[1739876862563,0.16312699,95848.0,95847.0,0.0021294]
[1739876864865,0.00662999,95848.0,95847.0,0.0021294]
[1739876865933,0.002,95848.0,95847.0,0.0021294]
[1739876866306,0.00662006,95848.0,95847.0,0.0021294]
[1739876866710,0.00662006,95848.0,95847.0,0.1586284]
[1739876866916,0.00662006,95848.0,95847.0,0.0021294]
[1739876867272,0.002,95848.0,95847.0,0.02170461]
[1739876867476,0.0066223,95848.0,95847.0,0.02170461]
[1739876867691,0.002,95848.0,95847.0,0.02170461]
[1739876867871,0.00662121,95848.0,95847.0,0.02170461]
[1739876868817,0.0001702,95859.0,95847.0,0.02170461]
[1739876868818,0.0001702,95859.0,95848.0,0.1274]
[1739876869040,0.0001702,95859.0,95858.0,0.237781]
[1739876869244,0.0001702,95859.0,95858.0,0.38638465]
[1739876870186,0.0001702,95859.0,95858.0,0.38738465]
[1739876870618,0.0001702,95859.0,95858.0,0.40695986]
[1739876871256,0.0001702,95859.0,95858.0,0.41478392]
[1739876872598,0.0011702,95859.0,95858.0,0.42078392]
[1739876872834,0.0011702,95859.0,95858.0,0.41895986]
[1739876875090,0.0011702,95859.0,95858.0,0.72554758]
[1739876875853,0.0009731,95859.0,95858.0,0.72554758]
[1739876880974,0.0011433,95859.0,95858.0,0.72554758]
[1739876887543,0.0011433,95859.0,95858.0,0.74854758]
[1739876892893,0.0011433,95859.0,95858.0,0.75624213]
[1739876893750,0.0011433,95859.0,95858.0,0.76405611]
[1739876894826,0.0011433,95859.0,95858.0,0.76439651]
[1739876895008,0.08018236,95880.0,95859.0,0.023]
[1739876895159,0.156448,95879.0,95860.0,0.41013437]
[1739876895538,1.02874488,95879.0,95872.0,0.156457]
[1739876895718,0.860819,95878.0,95872.0,0.156457]
[1739876895975,0.860819,95878.0,95861.0,0.00769455]
[1739876896190,0.08018236,95871.0,95862.0,0.10250365]
[1739876896392,0.208615,95870.0,95862.0,0.10250365]
[1739876896600,0.156467,95867.0,95862.0,0.10250365]
[1739876896847,0.156467,95867.0,95862.0,0.10263577]
[1739876897036,0.00467657,95866.0,95862.0,0.10263577]
[1739876897581,0.00467657,95866.0,95862.0,0.10563577]
[1739876897783,0.156463,95869.0,95863.0,0.17604461]
[1739876897990,0.00467963,95868.0,95863.0,0.17604461]
[1739876898201,0.001,95866.0,95863.0,0.01957161]
[1739876898403,0.00467505,95865.0,95863.0,0.01957161]
[1739876898622,0.00467505,95865.0,95863.0,0.17604361]
[1739876899234,0.00467505,95865.0,95863.0,0.01957161]
[1739876899435,0.00467505,95865.0,95864.0,0.01957161]
[1739876899629,0.156463,95869.0,95864.0,0.01957161]
[1739876899836,0.00467963,95868.0,95864.0,0.01957161]
[1739876900035,0.16114563,95868.0,95864.0,0.01957161]
[1739876900235,0.00467963,95868.0,95864.0,0.01957161]
[1739876900458,0.156465,95868.0,95864.0,0.01957161]
[1739876900661,0.001,95865.0,95864.0,0.01957161]
[1739876900866,0.00567505,95865.0,95864.0,0.003]
[1739876901048,0.00467505,95865.0,95864.0,0.003]
[1739876901246,0.157465,95868.0,95864.0,0.006]
[1739876901471,0.0046781,95867.0,95864.0,0.006]
[1739876902651,0.0046781,95867.0,95863.0,0.156472]
[1739876902828,0.0046781,95867.0,95864.0,0.011]
[1739876902829,0.001,95865.0,95864.0,0.011]
[1739876903210,0.001,95865.0,95864.0,0.18705349]
[1739876903439,0.00467505,95865.0,95864.0,0.17605349]
[1739876903644,0.00467505,95865.0,95864.0,0.18205349]
[1739876903826,0.00467505,95865.0,95864.0,0.18605349]
[1739876904026,0.00467505,95865.0,95864.0,0.17605349]
[1739876904396,0.156462,95870.0,95864.0,0.18805349]
[1739876904606,0.001,95865.0,95864.0,0.03158249]
[1739876904955,0.00566802,95865.0,95864.0,0.03158249]
[1739876905159,0.001,95865.0,95864.0,0.18805349]
[1739876905572,0.00566426,95865.0,95864.0,0.18305349]
[1739876905770,0.156463,95869.0,95864.0,0.17605349]
[1739876905976,0.00466426,95865.0,95864.0,0.18405349]
[1739876906176,0.156463,95869.0,95864.0,0.18105349]
[1739876906383,0.00466426,95865.0,95864.0,0.02458249]
[1739876906560,0.156462,95870.0,95864.0,0.02958249]
[1739876906761,0.156462,95870.0,95864.0,0.02458249]
[1739876906972,0.00467036,95869.0,95864.0,0.02458249]
[1739876907175,0.00467036,95869.0,95864.0,0.02492289]
[1739876907377,0.001,95865.0,95864.0,0.02692289]
[1739876907616,0.001,95865.0,95864.0,0.02992289]
[1739876907824,0.001,95865.0,95864.0,0.18639389]
[1739876908157,0.001,95865.0,95864.0,0.02992289]
[1739876908765,0.08018236,95871.0,95864.0,0.02292289]
[1739876908991,0.156462,95870.0,95864.0,0.02792289]
[1739876909167,0.16113389,95870.0,95864.0,0.18439389]
[1739876909577,0.00467189,95870.0,95864.0,0.17639389]
[1739876909808,0.001,95865.0,95864.0,0.18639389]
[1739876910116,0.00566426,95865.0,95864.0,0.18339389]
[1739876910262,0.23664236,95871.0,95864.0,0.1598114]
[1739876910462,0.00467189,95870.0,95864.0,0.1598114]
[1739876910673,0.00467189,95870.0,95864.0,0.0053404]
[1739876910887,0.156458,95872.0,95866.0,0.156468]
[1739876911096,0.00467341,95871.0,95866.0,0.156468]
[1739876911410,0.00467341,95871.0,95870.0,0.156461]
[1739876911597,0.156444,95881.0,95867.0,0.01957862]
[1739876911968,0.08018236,95882.0,95876.0,0.156452]
[1739876911969,0.14674191,95877.0,95876.0,0.156452]
[1739876912169,0.12306691,95877.0,95876.0,0.156452]
[1739876912317,0.00466691,95877.0,95876.0,0.156452]
[1739876912727,0.01112764,95878.0,95868.0,0.10250365]
[1739876912929,0.08018236,95880.0,95879.0,0.156447]
[1739876913143,0.156437,95885.0,95879.0,0.156447]
[1739876913313,0.00466271,95880.0,95879.0,0.156447]
[1739876913519,0.00466271,95880.0,95876.0,0.01957862]
[1739876913520,0.00517771,95887.0,95876.0,0.22917962]
[1739876913764,0.116814,95886.0,95881.0,0.156443]
[1739876913979,0.106672,95886.0,95879.0,0.208594]
[1739876914136,0.106672,95886.0,95882.0,0.156442]
[1739876914137,0.116676,95886.0,95882.0,0.156442]
[1739876914345,0.156435,95886.0,95879.0,0.156445]
[1739876914578,0.156435,95886.0,95877.0,0.02291796]
[1739876914810,0.156439,95884.0,95878.0,0.1797993]
[1739876915119,0.13133,95883.0,95878.0,0.1797993]
[1739876915308,0.13133,95883.0,95879.0,0.001]
[1739876915607,0.13133,95883.0,95879.0,0.02057553]
[1739876915857,0.13133,95883.0,95879.0,0.01957553]
[1739876916504,0.28777,95883.0,95879.0,0.01957553]
[1739876916665,0.13633,95882.0,95879.0,0.01957553]
[1739876917211,0.13633,95882.0,95880.0,0.01957553]
[1739876917420,0.171255,95884.0,95880.0,0.01957553]
[1739876917735,0.13633,95883.0,95880.0,0.01957553]
[1739876918118,0.001,95882.0,95880.0,0.17602053]
[1739876918319,0.13633,95881.0,95880.0,0.17602053]
[1739876918520,0.183311,95885.0,95880.0,0.01957553]
[1739876918722,0.186642,95884.0,95880.0,0.01957553]
[1739876918926,0.13633,95883.0,95880.0,0.01957553]
[1739876919066,0.13733,95883.0,95880.0,0.01957553]
[1739876919264,0.13633,95882.0,95881.0,0.156443]
[1739876919467,0.13633,95882.0,95881.0,0.17601853]
[1739876919893,0.13633,95882.0,95881.0,0.01957553]
[1739876920516,0.13625,95883.0,95881.0,0.01957553]
[1739876921135,0.001,95882.0,95881.0,0.01957553]
[1739876921334,0.101974,95882.0,95881.0,0.01957553]
[1739876921536,0.100974,95882.0,95881.0,0.01957553]
[1739876921733,0.102698,95883.0,95881.0,0.01957553]
[1739876921933,0.131196,95882.0,95881.0,0.01957553]
[1739876922214,0.2195496,95888.0,95881.0,0.01957553]
[1739876922376,0.001,95882.0,95881.0,0.01957553]
[1739876922579,0.158548,95882.0,95881.0,0.01957553]
[1739876922780,0.31499,95882.0,95881.0,0.01957553]
[1739876923751,0.158548,95882.0,95881.0,0.01957553]
[1739876924205,0.157548,95882.0,95881.0,0.01957553]
[1739876925359,0.31399,95882.0,95881.0,0.01957553]
[1739876925562,0.31499,95882.0,95881.0,0.01957553]
[1739876927861,0.31399,95882.0,95881.0,0.01957553]
[1739876928180,0.31499,95882.0,95881.0,0.01957553]
[1739876928499,0.31399,95882.0,95881.0,0.02357553]
[1739876928682,0.31399,95882.0,95881.0,0.02657553]
[1739876932675,0.156442,95882.0,95881.0,0.02657553]
[1739876932854,1.087688,95882.0,95881.0,0.02657553]
[1739876934327,0.931246,95882.0,95881.0,0.02657553]
[1739876934529,0.975517,95883.0,95881.0,0.02657553]
[1739876934977,1.131958,95883.0,95881.0,0.02657553]